[Event "2017 South African Open Ch"]
[Site "Durban"]
[Date "2017.07.18"]
[Round "7"]
[White "Bhawoodien, Shabir Hussain"]
[Black "Abrantes, Persson"]
[Result "0-1"]
[ECO "E80"]
[WhiteElo "2066"]
[BlackElo "2003"]
[Annotator "NA RC"]
[PlyCount "116"]
[EventDate "2017.??.??"]
[EventCountry "RSA"]
[SourceTitle "playchess.com"]
[Source "ChessBase"]
[SourceQuality "1"]
[TimeControl "5400+30"]

1. e4 {[%emt 0:03:59]} g6 {[%emt 0:00:39]} 2. d4 {[%emt 0:00:20]} d6 {[%emt 0:00:02]} 3. c4 {[%emt 0:00:49]} Bg7 {[%emt 0:00:07]} 4. Nc3 {[%emt 0:00:07]} Nf6 {[%emt 0:00:10]} 5. f3 {[%emt 0:00:02]} Nc6 {[%emt 0:02:08]} 6. Nge2 {[%emt 0:01:07]} O-O {[%emt 0:00:36]} 7. Be3 {[%emt 0:00:42]} e5 {[%emt 0:00:22]} 8. d5 {[%emt 0:00:14]} Na5 {[%emt 0:00:44]} 9. Nc1 {[%emt 0:04:28] E85: King's Indian: Sämisch: 6...e5} b6 {[%emt 0:00:26]} (9... c5 10. g4 a6 11. h4 Bd7 12. h5 b5 13. Qd2 Rb8 14. Rb1 Rb7 15. Bd3 Qb8 16. Kf2 bxc4 {0-1 (62) Riemersma,L (2426)-Zhou,Y (2437) Amsterdam 2013}) 10. b4 {[%emt 0:02:30]} Nb7 {[%emt 0:00:02]} 11. Nd3 {[%emt 0:01:57]} Nh5 {[%emt 0:00:12]} 12. g4 $146 {[%emt 0:03:07]} ({Predecessor:} 12. c5 bxc5 13. bxc5 dxc5 14. Nxc5 f5 15. Nxb7 Bxb7 16. Rb1 Bc8 {1-0 (32) Plichta,K (2257)-Kowalczyk,M (1655) Poznan 2014}) 12... Nf4 {[%emt 0:00:20]} 13. Nxf4 {[%emt 0:02:18]} exf4 {[%emt 0:00:02]} 14. Bd4 {[%emt 0:00:26]} Qh4+ {[%emt 0:00:02]} 15. Ke2 {[%emt 0:00:53]} a5 {[%emt 0:02:05]} 16. Bxg7 {[%emt 0:00:22]} Kxg7 {[%emt 0:00:03]} 17. a3 {[%emt 0:06:14]} Bd7 {[%emt 0:06:13]} 18. Bg2 {[%emt 0:17:26]} Rfe8 {[%emt 0:01:22]} 19. Qe1 {[%emt 0:07:07]} Qf6 {[%emt 0:00:06]} 20. Qd2 {[%emt 0:05:56]} g5 {[%emt 0:05:21]} 21. Kd3 {[%emt 0:05:14]} axb4 {[%emt 0:10:17]} 22. axb4 {[%emt 0:00:24]} b5 {[%emt 0:01:08]} 23. Qf2 {[%emt 0:08:30]} bxc4+ {[%emt 0:04:17]} 24. Kxc4 {[%emt 0:00:15]} (24. Kc2 $142) 24... c5 {[%emt 0:01:43]} 25. dxc6 {[%emt 0:02:46]} Qe6+ {[%emt 0:06:45]} 26. Nd5 {[%emt 0:03:48]} Bxc6 {[%emt 0:00:32]} 27. Qd4+ {[%emt 0:01:34]} f6 {[%emt 0:01:47]} 28. Kd3 {[%emt 0:08:45]} Rec8 {[%emt 0:02:58]} (28... Bxd5 $5 29. Qxd5 Qd7 $11) 29. Rxa8 {[%emt 0:01:48]} (29. Rhc1 $5 {[%cal Ra1a8]} Nd8 30. Kd2 $15 (30. Ra7+ $2 Rxa7 31. Qxa7+ Nf7 $19)) 29... Rxa8 {[%emt 0:00:51]} 30. Rc1 {[%emt 0:00:22]} Nd8 {[%emt 0:05:38]} 31. Kd2 $1 {[%emt 0:03:34]} Ra2+ {[%emt 0:14:15]} 32. Rc2 {[%emt 0:00:05]} Bxd5 {[%emt 0:00:12]} 33. Qxd5 {[%emt 0:01:23]} Rxc2+ {[%emt 0:00:21]} 34. Kxc2 {[%emt 0:00:00]} Qc8+ {[%emt 0:00:15]} 35. Kb3 {[%emt 0:04:02]} Qa6 {[%emt 0:03:51]} 36. Qc4 {[%emt 0:00:47]} Qa1 {[%emt 0:01:07]} 37. Qf1 {[%emt 0:00:50]} Qd4 {[%emt 0:00:21]} 38. Qc4 {[%emt 0:00:43]} Qf2 {[%emt 0:01:09]} 39. Qc2 {[%emt 0:00:17]} Qe3+ {[%emt 0:00:53]} 40. Qc3 {[%emt 0:00:14]} Qg1 {[%emt 0:00:18]} 41. Qc2 {[%emt 0:00:57]} Ne6 {[%emt 0:00:04]} 42. Qd2 {[%emt 0:00:29]} Qb1+ {[%emt 0:01:06]} 43. Ka4 {[%emt 0:01:23]} Qa1+ {[%emt 0:02:06]} ({Better is} 43... Nc7 $17 44. Ka5 Qg1) 44. Kb5 {[%emt 0:00:05]} Qe5+ {[%emt 0:02:19]} 45. Kc4 {[%emt 0:01:54]} Nc7 {[%emt 0:00:05]} 46. Qd4 {[%emt 0:00:27]} Qb5+ {[%emt 0:00:10]} 47. Kb3 {[%emt 0:00:37]} Qa6 {[%emt 0:04:07]} 48. Qc3 {[%emt 0:01:34]} Nb5 {[%emt 0:00:37]} 49. Qb2 {[%emt 0:01:01]} Qb6 {[%emt 0:00:24]} 50. Qd2 {[%emt 0:00:19]} Kf7 {[%emt 0:02:28]} 51. Bf1 {[%emt 0:00:06]} Nd4+ {[%emt 0:00:19]} 52. Ka3 {[%emt 0:00:55]} Ke7 $15 {[%emt 0:01:50]} ({Better is} 52... Nxf3 $17 53. Qd5+ Kg7) 53. Bc4 {[%emt 0:00:33]} (53. Qc3 $142) 53... Kd8 {[%emt 0:04:26]} 54. Qd3 {[%emt 0:00:06]} Kc7 {[%emt 0:00:30]} 55. e5 {[%emt 0:00:03]} Qa7+ {[%emt 0:01:00]} 56. Kb2 fxe5 {[%emt 0:01:15]} 57. Qxh7+ {[%emt 0:00:10]} Kb6 {[%emt 0:00:18]} 58. Qg6 Qc7 0-1

[Event "2017 South African Open Ch"]
[Site "Durban"]
[Date "2017.07.18"]
[Round "7"]
[White "Oberholzer, Francois"]
[Black "Salimu, Reuben"]
[Result "1-0"]
[ECO "C77"]
[WhiteElo "2046"]
[BlackElo "1968"]
[Annotator "NA RC"]
[PlyCount "71"]
[EventDate "2017.??.??"]
[EventCountry "RSA"]
[SourceTitle "playchess.com"]
[Source "ChessBase"]
[SourceQuality "1"]
[TimeControl "5400+30"]

1. e4 {[%emt 0:00:00]} e5 {[%emt 0:01:53]} 2. Nf3 {[%emt 0:00:00]} Nc6 {[%emt 0:00:09]} 3. Bb5 {[%emt 0:00:00]} a6 {[%emt 0:00:09]} 4. Ba4 {[%emt 0:00:00]} Nf6 {[%emt 0:00:08]} 5. d3 {[%emt 0:00:03]} d6 {[%emt 0:00:37]} 6. c3 {[%emt 0:00:22]} Be7 {[%emt 0:00:07]} 7. O-O {[%emt 0:00:17]} O-O {[%emt 0:00:09]} 8. Re1 {[%emt 0:00:55]} h6 {[%emt 0:09:27]} 9. Nbd2 {[%emt 0:00:53]} Nh7 {[%emt 0:02:24] C84: Closed Ruy Lopez: Unusual White 6th moves} (9... Re8 10. Nf1 Bf8 11. Ng3 b5 12. Bb3 Na5 13. Bc2 c5 14. d4 cxd4 15. cxd4 exd4 16. Nxd4 Bb7 17. Bf4 Rc8 18. Rc1 g5 19. Bd2 Nc4 20. Bc3 d5 21. Ndf5 b4 22. Bd4 dxe4 {1-0 (55) Oparin,G (2597)-Fedoseev,V (2665) Kolomna 2016}) 10. d4 {[%emt 0:21:50]} b5 {[%emt 0:06:13]} 11. Bb3 {[%emt 0:00:19]} Bf6 {[%emt 0:01:23]} 12. Bd5 {[%emt 0:03:57]} Bd7 {[%emt 0:00:16]} 13. dxe5 {[%emt 0:00:45]} dxe5 {[%emt 0:00:15]} 14. Nb3 {[%emt 0:02:52]} a5 $146 {[%emt 0:11:54]} ({Predecessor:} 14... Qe7 15. Be3 Rfd8 16. Qc2 Ng5 17. Nxg5 Bxg5 {½-½ (30) Babaev,R (2468)-Marholev,D (2401) Tournefeuille 2008}) 15. Be3 {[%emt 0:05:30]} a4 {[%emt 0:04:08]} 16. Nc5 {[%emt 0:01:23]} Rb8 {[%emt 0:00:29]} 17. Qe2 {[%emt 0:12:23]} Qc8 {[%emt 0:03:36]} 18. Rad1 {[%emt 0:09:48]} Be8 {[%emt 0:04:10]} 19. a3 {[%emt 0:01:36]} Ne7 {[%emt 0:07:17]} 20. Ba2 {[%emt 0:03:21]} Bc6 {[%emt 0:01:42]} 21. Nd3 {[%emt 0:06:33]} Ng6 {[%emt 0:03:36]} 22. Bc5 {[%emt 0:00:12]} Rd8 {[%emt 0:02:43]} 23. h4 {[%emt 0:02:56]} Rxd3 {[%emt 0:17:25]} (23... Re8 $14) 24. Qxd3 {[%emt 0:03:30]} ({And not} 24. Rxd3 Nf4 $11) 24... Nf4 {[%emt 0:00:50]} 25. Qf1 {[%emt 0:02:40]} Qg4 $16 {[%emt 0:00:20]} 26. Bd5 {[%emt 0:04:26]} Bxd5 {[%emt 0:02:28]} 27. exd5 {[%emt 0:00:07]} e4 {[%emt 0:00:22]} 28. Nh2 {[%emt 0:01:10]} Qxh4 {[%emt 0:01:34]} 29. g3 {[%emt 0:04:08]} Nh3+ {[%emt 0:02:20]} 30. Kg2 {[%emt 0:00:25]} Qh5 {[%emt 0:00:58]} 31. Qe2 {[%emt 0:00:59]} Qxe2 {[%emt 0:01:09]} 32. Rxe2 {[%emt 0:00:03]} N3g5 {[%emt 0:00:15]} 33. Ng4 {[%emt 0:01:05]} Bd8 {[%emt 0:01:03]} 34. Ne5 {[%emt 0:01:03]} Nf6 {[%emt 0:00:41]} 35. Nc6 {[%emt 0:00:42]} Rc8 {[%emt 0:00:11]} 36. Be7 1-0

[Event "2017 South African Open Ch"]
[Site "Durban"]
[Date "2017.07.18"]
[Round "7"]
[White "Skosana, Stephen K"]
[Black "Mazibuko, Khanya"]
[Result "1/2-1/2"]
[ECO "A05"]
[WhiteElo "2027"]
[BlackElo "1808"]
[Annotator "NA RC"]
[PlyCount "75"]
[EventDate "2017.??.??"]
[EventCountry "RSA"]
[SourceTitle "playchess.com"]
[Source "ChessBase"]
[SourceQuality "1"]
[TimeControl "5400+30"]

1. Nf3 {[%emt 0:00:00]} Nf6 {[%emt 0:04:27]} 2. b3 {[%emt 0:00:00]} g6 {[%emt 0:00:38]} 3. Bb2 {[%emt 0:00:00]} Bg7 {[%emt 0:00:09]} 4. c4 {[%emt 0:00:01]} d6 {[%emt 0:00:55]} 5. g3 {[%emt 0:01:28]} O-O {[%emt 0:01:12]} 6. Bg2 {[%emt 0:05:03]} Nc6 {[%emt 0:02:45] A15: English Opening: 1...Nf6} (6... e5 7. O-O Nbd7 8. Nc3 Re8 9. e3 c6 10. d4 e4 11. Nd2 d5 12. f3 exf3 13. Qxf3 Nb6 14. c5 Bg4 15. Qf4 Nbd7 16. e4 Be6 17. exd5 Nxd5 18. Nxd5 cxd5 19. b4 Nf6 20. Rae1 Qd7 21. Nf3 {0-1 (51) Malakhov,V (2713)-Amonatov,F (2620) Doha 2016}) 7. O-O {[%emt 0:00:26]} Rb8 {[%emt 0:00:42]} 8. Nc3 {[%emt 0:05:43]} a6 {[%emt 0:01:29]} 9. Rc1 {[%emt 0:04:09]} Ne4 $146 {[%emt 0:02:16]} ({Predecessor:} 9... e5 10. h3 Re8 11. d3 Bd7 12. Qd2 Nd4 13. Nd5 Nxf3+ 14. exf3 Nxd5 15. cxd5 {0-1 (26) Belov,N (2108)-Al Modiahki,M (2568) St Petersburg 2013}) 10. d3 {[%emt 0:05:14]} Nxc3 {[%emt 0:01:16]} 11. Bxc3 {[%emt 0:00:16]} Bxc3 {[%emt 0:00:09]} 12. Rxc3 {[%emt 0:00:17]} e5 {[%emt 0:00:12]} 13. a3 {[%emt 0:05:03]} Qf6 {[%emt 0:10:42]} 14. Nd2 {[%emt 0:02:06]} h5 {[%emt 0:04:02]} 15. Rc1 {[%emt 0:04:31]} Kg7 {[%emt 0:02:37]} 16. b4 {[%emt 0:02:44]} h4 {[%emt 0:03:19]} 17. Ne4 Qe7 {[%emt 0:03:22]} 18. Nc3 {[%emt 0:18:13]} Be6 {[%emt 0:03:19]} 19. e3 {[%emt 0:00:29]} Qd7 {[%emt 0:02:58]} 20. Nd5 {[%emt 0:05:42]} Rh8 {[%emt 0:15:41]} 21. d4 {[%emt 0:05:08]} Bh3 {[%emt 0:16:44]} ({Black should play} 21... Rbe8 $11) 22. Bxh3 {[%emt 0:03:07]} Qxh3 {[%emt 0:00:29]} 23. g4 {[%emt 0:00:33]} f5 {[%emt 0:00:18]} 24. gxf5 {[%emt 0:01:22]} gxf5 {[%emt 0:00:28]} (24... Qxf5 $14 25. dxe5 (25. Nxc7 Rhc8 $14) 25... dxe5) 25. Kh1 {[%emt 0:01:05]} Rbg8 {[%emt 0:00:40]} 26. Qe2 {[%emt 0:05:24]} ({But not} 26. Nxc7 $2 Kf7 $19) 26... f4 {[%emt 0:04:12] [#]} 27. f3 $18 {[%emt 0:01:23]} ({But not} 27. Nxc7 $2 f3 $19) 27... fxe3 {[%emt 0:03:16]} 28. dxe5 {[%emt 0:04:03]} dxe5 {[%emt 0:03:12]} 29. Qxe3 {[%emt 0:04:57]} Kf7 {[%emt 0:00:20]} 30. Rf2 {[%emt 0:01:11]} Rg3 {[%emt 0:04:26]} 31. Qe4 {[%emt 0:04:06]} Rhg8 {[%emt 0:02:00]} 32. Ne3 {[%emt 0:01:37]} R3g6 {[%emt 0:04:23]} 33. Ng4 {[%emt 0:01:09]} Rd8 {[%emt 0:01:02]} 34. b5 {[%emt 0:00:44]} Rgd6 {[%emt 0:00:30]} 35. Rff1 {[%emt 0:03:37]} Rd2 {[%emt 0:00:44]} 36. f4 {[%emt 0:00:46]} R8d4 {[%emt 0:01:34]} 37. fxe5+ {[%emt 0:00:26]} Kg7 {[%emt 0:00:40]} 38. Rf7+ 1/2-1/2

[Event "2017 South African Open Ch"]
[Site "Durban"]
[Date "2017.07.18"]
[Round "7"]
[White "Zwakala, Ntando"]
[Black "Masiya, Mfundo"]
[Result "1/2-1/2"]
[ECO "B22"]
[WhiteElo "2020"]
[BlackElo "1806"]
[Annotator "NA RC"]
[PlyCount "138"]
[EventDate "2017.??.??"]
[EventCountry "RSA"]
[SourceTitle "playchess.com"]
[Source "ChessBase"]
[SourceQuality "1"]
[TimeControl "5400+30"]

1. e4 {[%emt 0:00:00]} c5 {[%emt 0:00:04]} 2. c3 {[%emt 0:00:00]} d5 {[%emt 0:00:32]} 3. exd5 {[%emt 0:00:00]} Qxd5 {[%emt 0:00:07]} 4. d4 {[%emt 0:00:00]} Nf6 {[%emt 0:00:21]} 5. Nf3 {[%emt 0:00:05]} Bg4 {[%emt 0:00:20]} 6. Be2 {[%emt 0:00:24]} e6 {[%emt 0:00:16]} 7. O-O {[%emt 0:00:31]} Be7 {[%emt 0:00:15]} 8. Na3 {[%emt 0:01:39] B22: Sicilian: 2 c3} (8. h3 Bh5 9. Be3 cxd4 10. Nxd4 Bxe2 11. Qxe2 O-O 12. c4 Qd8 13. Nc3 Nbd7 14. Rfd1 Qc8 15. Ndb5 a6 16. Nd6 Qc6 17. Bf4 {1-0 (47) Mellado Trivino,J (2443)-Alonso Moyano,J (2402) Barcelona 2014}) 8... cxd4 {[%emt 0:01:45]} 9. Nb5 {[%emt 0:00:12]} Qd8 {[%emt 0:00:40]} 10. Nbxd4 {[%emt 0:00:56]} O-O {[%emt 0:00:19]} 11. h3 {[%emt 0:01:29]} Bh5 {[%emt 0:00:13]} 12. Qb3 {[%emt 0:00:16]} Qc8 {[%emt 0:02:43]} 13. Bg5 {[%emt 0:01:49]} h6 $146 {[%emt 0:02:54]} ({Predecessor:} 13... Nc6 14. Nxc6 bxc6 15. Qc4 Qb7 {1-0 (39) Jergler,K (2060)-Mauro,C (2050) Bayern 2002}) 14. Bh4 {[%emt 0:01:11]} Nbd7 {[%emt 0:02:39]} 15. Rad1 {[%emt 0:03:01]} Nc5 {[%emt 0:02:24]} 16. Qc4 {[%emt 0:07:51]} a6 {[%emt 0:05:42]} 17. a4 {[%emt 0:03:01]} Rd8 {[%emt 0:08:30]} 18. Rfe1 {[%emt 0:03:15]} Nce4 {[%emt 0:03:33]} 19. g4 {[%emt 0:15:53]} Bg6 {[%emt 0:02:29]} 20. Ne5 {[%emt 0:03:11]} Bh7 {[%emt 0:04:17]} 21. Qxc8 {[%emt 0:06:52]} Raxc8 {[%emt 0:00:32]} 22. Bd3 {[%emt 0:00:13]} g5 {[%emt 0:05:41]} 23. Bg3 {[%emt 0:00:31]} Nxg3 {[%emt 0:00:52]} 24. Bxh7+ {[%emt 0:00:19]} Nxh7 {[%emt 0:00:43]} 25. fxg3 {[%emt 0:00:20]} Nf6 {[%emt 0:00:17]} 26. Kg2 {[%emt 0:00:37]} Kg7 {[%emt 0:02:43]} 27. Rd3 {[%emt 0:14:02]} Bc5 {[%emt 0:08:28]} 28. Red1 {[%emt 0:04:35]} Rd5 {[%emt 0:09:14]} 29. Nef3 {[%emt 0:10:38]} (29. Nf5+ $5 Kh7 30. Rxd5 Nxd5 31. Nxf7 $11) 29... Rcd8 {[%emt 0:02:32]} 30. R3d2 {[%emt 0:01:00]} Kg8 {[%emt 0:03:34]} 31. Re2 $15 {[%emt 0:01:23]} b5 {[%emt 0:04:07]} 32. axb5 {[%emt 0:00:29]} axb5 {[%emt 0:00:06]} 33. Rf1 {[%emt 0:00:25]} Bxd4 {[%emt 0:09:52]} 34. Nxd4 {[%emt 0:01:00]} Ne8 {[%emt 0:00:45]} 35. Nc6 {[%emt 0:03:12]} R8d7 {[%emt 0:00:16]} 36. Ne5 {[%emt 0:01:21]} Rc7 {[%emt 0:01:16]} 37. Ra1 {[%emt 0:00:52]} Nd6 {[%emt 0:00:59]} 38. Nf3 {[%emt 0:00:56]} Rb7 {[%emt 0:01:06]} 39. Ne5 {[%emt 0:01:16]} Rc7 {[%emt 0:00:21]} 40. Ra8+ {[%emt 0:00:58]} Kg7 {[%emt 0:00:08]} 41. h4 {[%emt 0:01:43]} Nc4 {[%emt 0:00:55]} 42. Nf3 {[%emt 0:00:32]} Rb7 {[%emt 0:00:33]} 43. Ra1 {[%emt 0:02:30]} b4 {[%emt 0:03:03]} 44. b3 {[%emt 0:03:07]} Nd6 {[%emt 0:00:20]} 45. c4 {[%emt 0:00:20]} Rd3 {[%emt 0:00:25]} 46. Rd2 {[%emt 0:00:27]} Rxd2+ {[%emt 0:01:02]} 47. Nxd2 {[%emt 0:00:05]} Kf6 {[%emt 0:00:31]} 48. Ra6 {[%emt 0:01:07]} Ke7 {[%emt 0:02:42]} 49. Kf2 {[%emt 0:00:39]} f5 {[%emt 0:01:30]} 50. c5 Nf7 {[%emt 0:01:32]} 51. gxf5 {[%emt 0:01:46]} exf5 {[%emt 0:00:14]} 52. Nc4 {[%emt 0:00:32]} gxh4 {[%emt 0:00:30]} 53. gxh4 {[%emt 0:00:08]} Rc7 {[%emt 0:00:32]} 54. Ra5 {[%emt 0:01:02]} Ke6 {[%emt 0:01:24]} 55. Ke3 {[%emt 0:00:54]} Ne5 {[%emt 0:02:05]} 56. Nxe5 {[%emt 0:01:45]} Kxe5 {[%emt 0:00:08]} 57. c6+ {[%emt 0:00:41]} Kd6 {[%emt 0:02:26]} 58. Rxf5 {[%emt 0:00:23]} Kxc6 {[%emt 0:00:07]} 59. Kd4 {[%emt 0:00:40]} Kb6 {[%emt 0:03:13]} 60. Rf6+ {[%emt 0:00:16]} Kb5 {[%emt 0:00:12]} 61. Rxh6 {[%emt 0:01:44]} Rc3 {[%emt 0:00:05]} 62. Rh5+ {[%emt 0:00:22]} Kb6 {[%emt 0:00:08]} 63. Re5 {[%emt 0:00:48]} Rxb3 {[%emt 0:00:10]} 64. Kc4 {[%emt 0:00:15]} Rh3 {[%emt 0:00:31]} 65. h5 {[%emt 0:02:01]} Rh4+ {[%emt 0:00:09]} 66. Kb3 {[%emt 0:00:11]} Kc6 {[%emt 0:00:10]} 67. Rg5 {[%emt 0:00:16]} Kd7 {[%emt 0:00:35]} 68. Ka4 {[%emt 0:00:13]} Ke7 {[%emt 0:00:14]} 69. Rb5 {[%emt 0:00:43]} Kf7 {[%emt 0:00:17]} 1/2-1/2

[Event "2017 South African Open Ch"]
[Site "Durban"]
[Date "2017.07.18"]
[Round "7"]
[White "Tavagwisa, Lawrence"]
[Black "Makoto, Rodwell"]
[Result "0-1"]
[ECO "C55"]
[WhiteElo "1935"]
[BlackElo "2372"]
[Annotator "NA"]
[PlyCount "56"]
[EventDate "2017.??.??"]
[EventCountry "RSA"]
[SourceTitle "playchess.com"]
[Source "ChessBase"]
[SourceQuality "1"]
[TimeControl "5400+30"]

1. e4 {[%emt 0:00:00]} e5 {[%emt 0:00:02]} 2. Nf3 {[%emt 0:00:00]} Nc6 {[%emt 0:00:04]} 3. d4 {[%emt 0:00:13]} exd4 {[%emt 0:00:05]} 4. Bc4 {[%emt 0:00:15]} Nf6 {[%emt 0:00:25]} 5. e5 {[%emt 0:01:55] LiveBook: 1327 Games} Ne4 {[%emt 0:01:14]} 6. O-O {[%emt 0:03:22]} Be7 {[%emt 0:00:46]} 7. Qe2 {[%emt 0:02:23] C56: Two Knights: 4 d4 exd4 5 0-0 Nxe4} (7. Re1 d5 8. exd6 Nxd6 9. Bd5 O-O 10. Bxc6 bxc6 11. Nxd4 Qd7 12. Nc3 Bf6 13. Nb3 Qf5 14. Qd3 Qh5 15. Ne4 Nxe4 16. Qxe4 Be6 17. Qxc6 {0-1 (30) Wang,Y (2450)-Wei,Y (2696) Wuxi 2016}) 7... d5 {[%emt 0:01:43]} 8. Bb5 {[%emt 0:01:33]} Bg4 $146 {[%emt 0:02:21]} ({Predecessor:} 8... O-O 9. Bxc6 bxc6 10. Nxd4 Qd7 11. f4 Bc5 12. Be3 a5 13. Rf3 Ba6 14. Qe1 f5 {½-½ (67) Mraz,M (1958)-Laky,P (1972) Slovakia 2014}) 9. h3 {[%emt 0:05:01]} Bxf3 {[%emt 0:02:26]} 10. Qxf3 {[%emt 0:01:33]} O-O {[%emt 0:00:07]} 11. Bf4 {[%emt 0:02:09]} f6 {[%emt 0:01:11]} 12. Bxc6 {[%emt 0:05:51]} bxc6 {[%emt 0:01:36]} 13. Qd3 {[%emt 0:05:26]} c5 {[%emt 0:00:24]} 14. Nd2 {[%emt 0:09:52]} fxe5 {[%emt 0:01:44]} 15. Bxe5 {[%emt 0:00:44]} Nf6 {[%emt 0:09:30]} 16. Nf3 {[%emt 0:01:25]} Bd6 {[%emt 0:00:39]} 17. Qf5 {[%emt 0:05:19]} Bxe5 {[%emt 0:03:52]} 18. Nxe5 {[%emt 0:01:41]} Qc8 {[%emt 0:01:03]} 19. Qd3 {[%emt 0:05:22]} Qe6 {[%emt 0:02:08]} 20. Rfe1 {[%emt 0:03:14]} Ne4 {[%emt 0:02:19]} 21. Nf3 {[%emt 0:00:20]} Qf5 {[%emt 0:07:05]} 22. Re2 {[%emt 0:01:03]} Rab8 {[%emt 0:02:00]} 23. b3 {[%emt 0:00:28]} Rb6 {[%emt 0:01:03]} 24. Nd2 {[%emt 0:04:19]} Nc3 $19 {[%emt 0:02:57]} 25. Re7 {[%emt 0:07:03]} Qxf2+ {[%emt 0:00:48]} 26. Kh1 {[%emt 0:01:24]} Rg6 {[%emt 0:00:07]} 27. Rg1 {[%emt 0:00:22]} c4 {[%emt 0:02:40]} 28. bxc4 {[%emt 0:01:11]} Rg3 {[%emt 0:00:05]} 0-1

[Event "2017 South African Open Ch"]
[Site "Durban"]
[Date "2017.07.18"]
[Round "7"]
[White "Rooplal, Desmond"]
[Black "Mosenya, Ndawana"]
[Result "1-0"]
[ECO "C07"]
[WhiteElo "1686"]
[BlackElo "2062"]
[Annotator "NA RC"]
[PlyCount "126"]
[EventDate "2017.??.??"]
[EventCountry "RSA"]
[SourceTitle "playchess.com"]
[Source "ChessBase"]
[SourceQuality "1"]
[TimeControl "5400+30"]

1. e4 {[%emt 0:03:43]} e6 {[%emt 0:01:24]} 2. d4 {[%emt 0:00:03]} d5 {[%emt 0:00:07]} 3. Nd2 {[%emt 0:00:06]} c5 {[%emt 0:00:08]} 4. exd5 {[%emt 0:01:48]} Qxd5 {[%emt 0:00:14]} 5. dxc5 {[%emt 0:02:55]} Bxc5 {[%emt 0:00:29]} 6. Ngf3 {[%emt 0:00:17]} Nf6 {[%emt 0:01:20]} 7. Bc4 {[%emt 0:00:44]} Qd6 {[%emt 0:02:08]} 8. O-O {[%emt 0:00:49]} Nc6 {[%emt 0:00:59] C07: French Tarrasch: 3...c5, 4 Ngf3 and 4 exd5 Qxd5} 9. Nb3 {[%emt 0:05:31]} Qxd1 {[%emt 0:03:23]} 10. Rxd1 {[%emt 0:00:01]} Bb6 {[%emt 0:01:48]} (10... Be7 11. c3 Bd7 12. a4 O-O 13. a5 Rfd8 14. a6 bxa6 15. Rxa6 Rac8 16. Be2 Nd5 {½-½ (36) Friedel,J (2505)-Robson,R (2631) Saint Louis 2014}) 11. Bg5 {[%emt 0:08:42]} Ng4 $146 {[%emt 0:01:16]} ({Predecessor:} 11... Bd7 12. Bh4 Rc8 13. Bf1 Ke7 14. c3 Rhd8 15. Rd2 Be8 16. Rad1 Rxd2 17. Rxd2 {½-½ (61) Hegedus,R (2039)-Biro,Z (2050) Hungary 2012}) 12. Bh4 {[%emt 0:01:31]} O-O {[%emt 0:00:17]} 13. h3 {[%emt 0:00:46]} Nge5 {[%emt 0:00:11]} 14. Be2 {[%emt 0:06:31]} Nxf3+ {[%emt 0:06:57]} 15. Bxf3 {[%emt 0:00:23]} Ne5 {[%emt 0:00:09]} 16. Be2 {[%emt 0:00:48]} f6 {[%emt 0:00:16]} 17. Bg3 {[%emt 0:00:44]} Nf7 {[%emt 0:00:53]} 18. Nd2 {[%emt 0:03:25]} e5 {[%emt 0:00:42]} 19. Nc4 {[%emt 0:06:13]} Bc5 {[%emt 0:00:15]} 20. Bf3 {[%emt 0:01:53]} Be6 {[%emt 0:02:11]} 21. Na5 {[%emt 0:03:08]} Nd6 {[%emt 0:04:24]} 22. Nxb7 {[%emt 0:03:58]} Nxb7 {[%emt 0:02:54]} 23. Bxb7 {[%emt 0:00:10]} Rab8 {[%emt 0:01:22]} 24. Bd5 {[%emt 0:00:03]} Bxd5 {[%emt 0:00:26]} 25. Rxd5 {[%emt 0:00:03]} Rfc8 {[%emt 0:00:47]} 26. b3 {[%emt 0:07:44]} Rb7 {[%emt 0:03:42]} 27. Rad1 {[%emt 0:02:52]} Bd4 {[%emt 0:00:55]} 28. Rd2 {[%emt 0:01:44]} Kf7 {[%emt 0:00:24]} 29. Kf1 {[%emt 0:01:02]} Ke6 {[%emt 0:00:22]} 30. c4 {[%emt 0:00:28]} Rc6 {[%emt 0:04:14]} 31. f4 {[%emt 0:01:04]} h5 {[%emt 0:05:09]} 32. fxe5 {[%emt 0:00:21]} fxe5 {[%emt 0:00:19]} 33. Ke2 {[%emt 0:09:02]} Rf7 {[%emt 0:02:50]} 34. Kd3 {[%emt 0:02:11]} Rf5 {[%emt 0:09:41]} 35. Re2 {[%emt 0:00:52]} Kf6 {[%emt 0:00:25]} 36. Be1 {[%emt 0:03:11]} Re6 {[%emt 0:01:58]} 37. c5 {[%emt 0:04:26]} Rc6 {[%emt 0:01:30]} 38. b4 {[%emt 0:02:19]} a5 {[%emt 0:01:36]} 39. a3 {[%emt 0:01:37]} axb4 {[%emt 0:00:12]} 40. axb4 {[%emt 0:00:02]} Ra6 {[%emt 0:00:22]} 41. Kc4 {[%emt 0:01:20]} Rf1 {[%emt 0:02:04]} 42. Kb5 {[%emt 0:00:26]} Ra1 {[%emt 0:00:15]} 43. Bg3 {[%emt 0:02:00]} Rf5 {[%emt 0:05:13]} 44. Kc6 {[%emt 0:01:36]} Ra6+ {[%emt 0:05:21]} 45. Kb7 {[%emt 0:00:58]} Ra3 {[%emt 0:00:29]} 46. Be1 {[%emt 0:02:43]} Kg6 {[%emt 0:02:00]} 47. b5 {[%emt 0:03:18]} Rf7+ {[%emt 0:00:18]} 48. Kc6 {[%emt 0:00:22]} Rb3 {[%emt 0:01:29]} 49. b6 {[%emt 0:02:42]} Kf5 {[%emt 0:00:35]} (49... Rf8 $142 50. Rd7 Rb1) 50. Bf2 {[%emt 0:01:18]} Rf6+ {[%emt 0:04:15]} 51. Kd7 {[%emt 0:01:06]} Bxf2 {[%emt 0:00:41]} 52. Rxf2+ {[%emt 0:01:02]} Ke4 {[%emt 0:00:01]} 53. Rfd2 {[%emt 0:01:15]} Ke3 {[%emt 0:02:11]} 54. Rc2 {[%emt 0:00:43]} e4 {[%emt 0:01:49]} 55. Rc4 $18 {[%emt 0:01:18]} Rd3 {[%emt 0:04:13]} 56. Rxe4+ {[%emt 0:01:26]} Kxe4 {[%emt 0:00:13]} 57. Rxd3 {[%emt 0:00:07]} Kxd3 {[%emt 0:00:09]} 58. c6 {[%emt 0:00:12]} Kd4 {[%emt 0:06:47]} 59. b7 {[%emt 0:00:16]} Kc5 {[%emt 0:02:24]} 60. c7 {[%emt 0:00:38]} Rf7+ {[%emt 0:00:26]} 61. Kd8 {[%emt 0:00:23]} Kd6 {[%emt 0:01:20]} 62. c8=N+ {[%emt 0:00:52]} Ke6 {[%emt 0:02:08]} 63. b8=Q {[%emt 0:00:45]} Kd5 1-0